fUSD/lending_fUSD_20240618
["ID","MTS","AMOUNT","RATE_DAILY","PERIOD"]
[329815867,1718694645938,-500.0,0.00021917,2]
[329815869,1718694645947,-500.0,0.00021917,2]
[329815870,1718694645958,-768.04,0.00021917,2]
[329815872,1718694645968,-500.0,0.00021917,2]
[329815873,1718694645978,-500.0,0.00021917,2]
[329815874,1718694645987,-500.0,0.00021917,2]
[329815875,1718694645996,-500.0,0.00021917,2]
[329815876,1718694646006,-500.0,0.00021917,2]
[329815877,1718694646015,-500.0,0.00021917,2]
[329815878,1718694646025,-500.0,0.00021917,2]
[329815879,1718694646034,-500.0,0.00021917,2]
[329815880,1718694646043,-500.0,0.00021917,2]
[329815881,1718694646052,-500.0,0.00021917,2]
[329815882,1718694646061,-500.0,0.00021917,2]
[329815883,1718694646071,-500.0,0.00021917,2]
[329815884,1718694646080,-1184.59,0.00021917,2]
[329815885,1718694646089,-501.31,0.00021917,2]
[329815886,1718694646098,-1303.23,0.00021917,2]
[329815887,1718694646107,-719.99,0.00021917,2]
[329815888,1718694646116,-500.0,0.00021917,2]
[329815889,1718694646125,-500.0,0.00021917,2]
[329815890,1718694646134,-500.0,0.00021917,2]
[329815891,1718694646143,-500.0,0.00021917,2]
[329815892,1718694646152,-500.0,0.00021917,2]
[329815893,1718694646162,-500.0,0.00021917,2]
[329815894,1718694646171,-500.0,0.00021917,2]
[329815895,1718694646180,-1416.52,0.00021917,2]
[329815896,1718694646189,-500.0,0.00021917,2]
[329815897,1718694646198,-500.0,0.00021917,2]
[329815898,1718694646209,-500.0,0.00021917,2]
[329815899,1718694646219,-500.0,0.00021917,2]
[329815900,1718694646228,-805.03,0.00021917,2]
[329815901,1718694646237,-880.66,0.00021917,2]
[329815902,1718694646247,-500.0,0.00021917,2]
[329815903,1718694646256,-500.0,0.00021917,2]
[329815904,1718694646265,-500.0,0.00021917,2]
[329815905,1718694646274,-500.0,0.00021917,2]
[329815906,1718694646284,-500.0,0.00021917,2]
[329815907,1718694646293,-500.0,0.00021917,2]
[329815908,1718694646303,-522.41,0.00021917,2]
[329815909,1718694646312,-500.0,0.00021917,2]
[329815910,1718694646324,-500.0,0.00021917,2]
[329815911,1718694646338,-500.0,0.00021917,2]
[329815912,1718694646347,-1240.33,0.00021917,2]
[329815913,1718694646357,-500.0,0.00021917,2]
[329815914,1718694646367,-500.0,0.00021917,2]
[329815915,1718694646377,-500.0,0.00021917,2]
[329815916,1718694646386,-2009.97,0.00021917,2]
[329815917,1718694646396,-921.11,0.00021917,2]
[329815918,1718694646408,-1619.14,0.00021917,2]
[329815919,1718694646418,-500.0,0.00021917,2]
[329815920,1718694646427,-500.0,0.00021917,2]
[329815921,1718694646437,-500.0,0.00021917,2]
[329815922,1718694646446,-500.0,0.00021917,2]
[329815923,1718694646458,-500.0,0.00021917,2]
[329815924,1718694646467,-505.7889065,0.00021917,2]
[329815925,1718694646477,-500.0,0.00021917,2]
[329815926,1718694646486,-500.0,0.00021917,2]
[329815927,1718694646496,-500.0,0.00021917,2]
[329815928,1718694646507,-500.0,0.00021917,2]
[329815929,1718694646516,-500.0,0.00021917,2]
[329815930,1718694646525,-500.0,0.00021917,2]
[329815931,1718694646534,-1294.33,0.00021917,2]
[329815932,1718694646544,-2096.27701684,0.00021917,2]
[329815933,1718694646553,-1317.7,0.00021917,2]
[329815934,1718694646562,-500.0,0.00021917,2]
[329815935,1718694646571,-500.0,0.00021917,2]
[329815936,1718694646580,-500.0,0.00021917,2]
[329815937,1718694646590,-5000.0,0.00021917,2]
[329815938,1718694646601,-1407.85,0.00021917,2]
[329815939,1718694646611,-500.0,0.00021917,2]
[329815940,1718694646620,-500.0,0.00021917,2]
[329815941,1718694646630,-500.0,0.00021917,2]
[329815942,1718694646639,-500.0,0.00021917,2]
[329815943,1718694646648,-500.0,0.00021917,2]
[329815944,1718694646658,-500.0,0.00021917,2]
[329815945,1718694646667,-513.91,0.00021917,2]
[329815946,1718694646676,-500.0,0.00021917,2]
[329815947,1718694646686,-896.46,0.00021917,2]
[329815948,1718694646695,-515.16,0.00021917,2]
[329815949,1718694646707,-373.9961168,0.00021917,2]
[329815950,1718694646716,-1000.0,0.00021917,2]
[329815951,1718694646725,-540.53,0.00021917,2]
[329815952,1718694646734,-1542.62,0.00021917,2]
[329815953,1718694646744,-500.0,0.00021917,2]
[329815954,1718694646753,-500.0,0.00021917,2]
[329815955,1718694646762,-684.35,0.00021917,2]
[329815956,1718694646772,-724.0,0.00021917,2]
[329815957,1718694646781,-743.93,0.00021917,2]
[329815958,1718694646791,-1332.3,0.00021917,2]
[329815959,1718694646800,-500.0,0.00021917,2]
[329815960,1718694646809,-500.0,0.00021917,2]
[329815961,1718694646818,-646.99,0.00021917,2]
[329815962,1718694646827,-500.0,0.00021917,2]
[329815963,1718694646837,-500.0,0.00021917,2]
[329815964,1718694646846,-500.0,0.00021917,2]
[329815965,1718694646855,-500.0,0.00021917,2]
[329815966,1718694646864,-500.0,0.00021917,2]
[329815967,1718694646873,-500.0,0.00021917,2]
[329815968,1718694646882,-500.0,0.00021917,2]
[329815969,1718694646891,-500.0,0.00021917,2]
[329815970,1718694646901,-500.0,0.00021917,2]
[329815971,1718694646910,-1031.88,0.00021917,2]
[329815972,1718694646920,-500.0,0.00021917,2]
[329815973,1718694646929,-500.0,0.00021917,2]
[329815974,1718694646938,-500.0,0.00021917,2]
[329815975,1718694646949,-500.0,0.00021917,2]
[329815976,1718694646960,-505.29228638,0.00021917,2]
[329815977,1718694646969,-500.0,0.00021917,2]
[329815978,1718694646978,-500.0,0.00021917,2]
[329815979,1718694646987,-500.0,0.00021917,2]
[329815980,1718694646996,-500.0,0.00021917,2]
[329815981,1718694647006,-500.0,0.00021917,2]
[329815982,1718694647015,-500.0,0.00021917,2]
[329815983,1718694647024,-568.34,0.00021917,2]
[329815984,1718694647033,-500.0,0.00021917,2]
[329815985,1718694647043,-500.0,0.00021917,2]
[329815986,1718694647051,-500.0,0.00021917,2]
[329815987,1718694647061,-1548.8,0.00021917,2]
[329815988,1718694647070,-1277.25,0.00021917,2]
[329815989,1718694647079,-500.0,0.00021917,2]
[329815990,1718694647088,-500.0,0.00021917,2]
[329815991,1718694647097,-500.0,0.00021917,2]
[329815992,1718694647106,-1170.86,0.00021917,2]
[329815993,1718694647115,-500.0,0.00021917,2]
[329815994,1718694647124,-500.0,0.00021917,2]
[329815995,1718694647134,-500.0,0.00021917,2]
[329815996,1718694647143,-500.0,0.00021917,2]
[329815997,1718694647153,-467.61206117,0.00021917,2]
[329815998,1718694647162,-500.0,0.00021917,2]
[329815999,1718694647172,-938.95,0.00021917,2]
[329816000,1718694647181,-619.83,0.00021917,2]
[329816001,1718694647190,-1341.6,0.00021917,2]
[329816002,1718694647199,-500.0,0.00021917,2]
[329816003,1718694647210,-500.0,0.00021917,2]
[329816004,1718694647219,-1284.59,0.00021917,2]
[329816005,1718694647227,-500.0,0.00021917,2]
[329816006,1718694647236,-500.0,0.00021917,2]
[329816007,1718694647245,-500.0,0.00021917,2]
[329816008,1718694647255,-500.0,0.00021917,2]
[329816009,1718694647264,-577.1650016,0.00021917,2]
[329816010,1718694647273,-500.0,0.00021917,2]
[329816011,1718694647282,-500.0,0.00021917,2]
[329816012,1718694647291,-500.0,0.00021917,2]
[329816013,1718694647300,-1486.31,0.00021917,2]
[329816014,1718694647310,-887.99,0.00021917,2]
[329816015,1718694647326,-500.0,0.00021917,2]
[329816016,1718694647335,-588.42,0.00021917,2]
[329816017,1718694647344,-1043.05,0.00021917,2]
[329816018,1718694647353,-500.0,0.00021917,2]
[329816019,1718694647364,-501.92928922,0.00021917,2]
[329816020,1718694647373,-885.16,0.00021917,2]
[329816021,1718694647383,-500.0,0.00021917,2]
[329816022,1718694647393,-500.0,0.00021917,2]
[329816023,1718694647406,-501.72,0.00021917,2]
[329816024,1718694647416,-930.25,0.00021917,2]
[329816025,1718694647425,-500.0,0.00021917,2]
[329816026,1718694647434,-1152.29,0.00021917,2]
[329816027,1718694647444,-500.0,0.00021917,2]
[329816028,1718694647456,-500.0,0.00021917,2]
[329816029,1718694647465,-566.53,0.00021917,2]
[329816030,1718694647474,-500.0,0.00021917,2]
[329816031,1718694647483,-503.04692167,0.00021917,2]
[329816032,1718694647492,-500.0,0.00021917,2]
[329816033,1718694647502,-574.60227236,0.00021917,2]
[329816034,1718694647511,-498.28804483,0.00021917,2]
[329816035,1718694647520,-500.0,0.00021917,2]
[329816036,1718694647530,-935.95,0.00021917,2]
[329816037,1718694647540,-1094.3,0.00021917,2]
[329816038,1718694647549,-948.82,0.00021917,2]
[329816039,1718694647561,-1167.88,0.00021917,2]
[329816040,1718694647570,-500.0,0.00021917,2]
[329816041,1718694647580,-538.29474243,0.00021917,2]
[329816042,1718694647589,-500.0,0.00021917,2]
[329816043,1718694647599,-500.0,0.00021917,2]
[329816044,1718694647611,-500.0,0.00021917,2]
[329816045,1718694647621,-618.81,0.00021917,2]
[329816046,1718694647630,-514.82042162,0.00021917,2]
[329816047,1718694647639,-500.0,0.00021917,2]
[329816048,1718694647649,-501.82997854,0.00021917,2]
[329816049,1718694647658,-550.2,0.00021917,2]
[329816050,1718694647667,-500.0,0.00021917,2]
[329816051,1718694647676,-500.0,0.00021917,2]
[329816052,1718694647848,-754.65,0.00021917,2]
[329816053,1718694647858,-500.0,0.00021917,2]
[329816054,1718694647867,-1297.37,0.00021917,2]
[329816055,1718694647876,-1364.2,0.00021917,2]
[329816056,1718694647886,-975.81,0.00021917,2]
[329816057,1718694647896,-500.0,0.00021917,2]
[329816058,1718694647906,-500.0,0.00021917,2]
[329816059,1718694647915,-500.0,0.00021917,2]
[329816060,1718694647925,-500.0,0.00021917,2]
[329816061,1718694647934,-500.0,0.00021917,2]
[329816062,1718694647944,-1578.57,0.00021917,2]
[329816063,1718694647956,-499.99959143,0.00021917,2]
[329816064,1718694647965,-500.0,0.00021917,2]
[329816065,1718694647974,-500.0,0.00021917,2]
[329816066,1718694647983,-500.0,0.00021917,2]
[329816067,1718694647992,-613.75,0.00021917,2]
[329816068,1718694648002,-544.47,0.00021917,2]
[329816069,1718694648011,-500.0,0.00021917,2]
[329816070,1718694648022,-500.0,0.00021917,2]
[329816071,1718694648031,-500.0,0.00021917,2]
[329816072,1718694648040,-628.47,0.00021917,2]
[329816073,1718694648050,-539.01402092,0.00021917,2]
[329816074,1718694648059,-541.1,0.00021917,2]
[329816075,1718694648069,-500.0,0.00021917,2]
[329816076,1718694648078,-500.0,0.00021917,2]
[329816077,1718694648088,-1099.03,0.00021917,2]
[329816078,1718694648097,-500.0,0.00021917,2]
[329816079,1718694648107,-500.0,0.00021917,2]
[329816080,1718694648116,-500.0,0.00021917,2]
[329816081,1718694648125,-507.25176028,0.00021917,2]
[329816082,1718694648134,-730.79,0.00021917,2]
[329816083,1718694648143,-1920.56,0.00021917,2]
[329816084,1718694648153,-500.0,0.00021917,2]
[329816085,1718694648163,-500.0,0.00021917,2]
[329816086,1718694648172,-500.0,0.00021917,2]
[329816087,1718694648182,-509.95817913,0.00021917,2]
[329816088,1718694648191,-1036.79,0.00021917,2]
[329816089,1718694648200,-500.0,0.00021917,2]
[329816090,1718694648211,-500.0,0.00021917,2]
[329816091,1718694648220,-730.99,0.00021917,2]
[329816092,1718694648230,-409.75278024,0.00021917,2]
[329816093,1718694648239,-500.0,0.00021917,2]
[329816094,1718694648248,-500.0,0.00021917,2]
[329816095,1718694648257,-500.0,0.00021917,2]
[329816096,1718694648267,-500.0,0.00021917,2]
[329816097,1718694648276,-1000.0,0.00021917,2]
[329816098,1718694648285,-1223.46,0.00021917,2]
[329816099,1718694648294,-994.25,0.00021917,2]
[329816100,1718694648303,-500.0,0.00021917,2]
[329816101,1718694648313,-500.0,0.00021917,2]
[329816102,1718694648323,-989.28,0.00021917,2]
[329816103,1718694648335,-500.0,0.00021917,2]
[329816104,1718694648345,-500.0,0.00021917,2]
[329816105,1718694648354,-500.0,0.00021917,2]
[329816106,1718694648364,-796.87,0.00021917,2]
[329816107,1718694648373,-500.0,0.00021917,2]
[329816108,1718694648382,-682.28,0.00021917,2]
[329816109,1718694648395,-500.0,0.00021917,2]
[329816110,1718694648408,-500.0,0.00021917,2]
[329816111,1718694648418,-834.05,0.00021917,2]
[329816112,1718694648434,-500.0,0.00021917,2]
[329816113,1718694648443,-500.0,0.00021917,2]
[329816114,1718694648454,-500.0,0.00021917,2]
[329816115,1718694648463,-500.0,0.00021917,2]
[329816116,1718694648472,-500.0,0.00021917,2]
[329816117,1718694648481,-500.0,0.00021917,2]
[329816118,1718694648491,-1412.11,0.00021917,2]
[329816119,1718694648501,-500.0,0.00021917,2]
[329816120,1718694648510,-500.0,0.00021917,2]
[329816121,1718694648519,-500.0,0.00021917,2]
[329816122,1718694648529,-500.0,0.00021917,2]
[329816123,1718694648538,-500.0,0.00021917,2]
[329816124,1718694648547,-500.0,0.00021917,2]
[329816125,1718694648556,-500.0,0.00021917,2]
[329816126,1718694648566,-500.0,0.00021917,2]
[329816127,1718694648575,-500.0,0.00021917,2]
[329816128,1718694648584,-1143.24,0.00021917,2]
[329816129,1718694648593,-500.0,0.00021917,2]
[329816130,1718694648603,-726.93,0.00021917,2]
[329816131,1718694648612,-500.0,0.00021917,2]
[329816132,1718694648621,-500.0,0.00021917,2]
[329816133,1718694648631,-500.0,0.00021917,2]
[329816134,1718694648640,-500.0,0.00021917,2]
[329816135,1718694648649,-717.86,0.00021917,2]
[329816136,1718694648659,-500.0,0.00021917,2]
[329816137,1718694648668,-500.0,0.00021917,2]
[329816138,1718694648677,-500.0,0.00021917,2]
[329816139,1718694648686,-1035.72,0.00021917,2]
[329816140,1718694648696,-500.0,0.00021917,2]
[329816141,1718694648707,-500.0,0.00021917,2]
[329816142,1718694648716,-500.0,0.00021917,2]
[329816143,1718694648725,-500.0,0.00021917,2]
[329816144,1718694648735,-1406.75,0.00021917,2]
[329816145,1718694648744,-500.0,0.00021917,2]
[329816146,1718694648753,-1305.39,0.00021917,2]
[329816147,1718694648763,-500.0,0.00021917,2]
[329816148,1718694648772,-230.570928,0.00021917,2]
[329816149,1718694648782,-500.0,0.00021917,2]
[329816150,1718694648791,-664.31,0.00021917,2]
[329816151,1718694648801,-500.0,0.00021917,2]
[329816152,1718694648810,-500.0,0.00021917,2]
[329816153,1718694648819,-500.0,0.00021917,2]
[329816154,1718694648828,-739.07,0.00021917,2]
[329816155,1718694648838,-1877.72,0.00021917,2]
[329816156,1718694648846,-1471.43,0.00021917,2]
[329816157,1718694648856,-500.0,0.00021917,2]
[329816158,1718694648865,-500.0,0.00021917,2]
[329816159,1718694648875,-954.69,0.00021917,2]
[329816160,1718694648884,-500.0,0.00021917,2]
[329816161,1718694648893,-500.0,0.00021917,2]
[329816162,1718694648903,-500.0,0.00021917,2]
[329816163,1718694648912,-500.0,0.00021917,2]
[329816164,1718694648921,-500.0,0.00021917,2]
[329816165,1718694648930,-500.0,0.00021917,2]
[329816166,1718694648939,-500.0,0.00021917,2]
[329816167,1718694648949,-500.0,0.00021917,2]
[329816168,1718694648962,-312.36270965,0.00021917,2]
[329816169,1718694648971,-552.44,0.00021917,2]
[329816170,1718694648980,-500.0,0.00021917,2]
[329816171,1718694648988,-500.0,0.00021917,2]
[329816172,1718694648999,-500.0,0.00021917,2]
[329816173,1718694649009,-500.0,0.00021917,2]
[329816174,1718694649018,-1037.01,0.00021917,2]
[329816175,1718694649028,-500.0,0.00021917,2]
[329816176,1718694649037,-1386.75,0.00021917,2]
[329816177,1718694649047,-514.63,0.00021917,2]
[329816178,1718694649056,-500.0,0.00021917,2]
[329816179,1718694649065,-500.0,0.00021917,2]
[329816180,1718694649074,-538.98,0.00021917,2]
[329816181,1718694649083,-500.0,0.00021917,2]
[329816182,1718694649093,-500.0,0.00021917,2]
[329816183,1718694649103,-1527.03,0.00021917,2]
[329816184,1718694649112,-500.0,0.00021917,2]
[329816185,1718694649121,-500.0,0.00021917,2]
[329816186,1718694649131,-546.57585598,0.00021917,2]
[329816187,1718694649140,-528.14,0.00021917,2]
[329816188,1718694649149,-500.0,0.00021917,2]
[329816189,1718694649159,-500.0,0.00021917,2]
[329816190,1718694649168,-500.0,0.00021917,2]
[329816191,1718694649177,-500.0,0.00021917,2]
[329816192,1718694649186,-500.0,0.00021917,2]
[329816193,1718694649196,-549.96,0.00021917,2]
[329816194,1718694649206,-1581.69,0.00021917,2]
[329816195,1718694649215,-500.0,0.00021917,2]
[329816196,1718694649224,-500.0,0.00021917,2]
[329816197,1718694649234,-559.92,0.00021917,2]
[329816198,1718694649243,-521.52,0.00021917,2]
[329816199,1718694649253,-500.0,0.00021917,2]
[329816200,1718694649262,-500.0,0.00021917,2]
[329816201,1718694649271,-500.0,0.00021917,2]
[329816202,1718694649280,-500.0,0.00021917,2]
[329816203,1718694649290,-500.0,0.00021917,2]
[329816204,1718694649299,-500.0,0.00021917,2]
[329816205,1718694649308,-500.0,0.00021917,2]
[329816206,1718694649319,-500.0,0.00021917,2]
[329816207,1718694649334,-508.33676469,0.00021917,2]
[329816208,1718694649343,-580.45,0.00021917,2]
[329816209,1718694649352,-412.17,0.00021917,2]
[329816210,1718694649363,-500.0,0.00021917,2]
[329816211,1718694649373,-500.0,0.00021917,2]
[329816212,1718694649382,-500.0,0.00021917,2]
[329816213,1718694649391,-500.0,0.00021917,2]
[329816214,1718694649402,-974.63,0.00021917,2]
[329816215,1718694649413,-505.71471668,0.00021917,2]
[329816216,1718694649422,-500.0,0.00021917,2]
[329816217,1718694649431,-763.92,0.00021917,2]
[329816218,1718694649441,-1182.29,0.00021917,2]
[329816219,1718694649450,-500.0,0.00021917,2]
[329816220,1718694649461,-500.0,0.00021917,2]
[329816221,1718694649470,-500.0,0.00021917,2]
[329816222,1718694649479,-500.0,0.00021917,2]
[329816223,1718694649489,-622.99,0.00021917,2]
[329816224,1718694649498,-500.0,0.00021917,2]
[329816225,1718694649508,-500.0,0.00021917,2]
[329816226,1718694649517,-500.0,0.00021917,2]
[329816227,1718694649526,-500.0,0.00021917,2]
[329816228,1718694649535,-500.0,0.00021917,2]
[329816229,1718694649545,-580.99,0.00021917,2]
[329816230,1718694649554,-435.2562844,0.00021917,2]
[329816231,1718694649563,-500.0,0.00021917,2]
[329816232,1718694649572,-1490.19,0.00021917,2]
[329816233,1718694649582,-500.0,0.00021917,2]
[329816234,1718694649591,-509.96422788,0.00021917,2]
[329816235,1718694649600,-871.1,0.00021917,2]
[329816236,1718694649610,-500.0,0.00021917,2]
[329816237,1718694649619,-500.0,0.00021917,2]
[329816238,1718694649628,-500.0,0.00021917,2]
[329816239,1718694649638,-500.0,0.00021917,2]
[329816240,1718694649647,-4655.06,0.00021917,2]
[329816241,1718694649657,-500.0,0.00021917,2]
[329816242,1718694649667,-500.0,0.00021917,2]
[329816243,1718694649676,-500.0,0.00021917,2]
[329816244,1718694649685,-1617.47,0.00021917,2]
[329816245,1718694649695,-500.0,0.00021917,2]
[329816246,1718694649706,-500.0,0.00021917,2]
[329816247,1718694649715,-502.48572828,0.00021917,2]
[329816248,1718694649725,-500.0,0.00021917,2]
[329816249,1718694649734,-1538.23,0.00021917,2]
[329816250,1718694649745,-500.0,0.00021917,2]
[329816251,1718694649756,-500.0,0.00021917,2]
[329816252,1718694649766,-1729.34,0.00021917,2]
[329816253,1718694649775,-994.92,0.00021917,2]
[329816254,1718694649785,-500.0,0.00021917,2]
[329816255,1718694649796,-503.25045092,0.00021917,2]
[329816256,1718694649806,-500.0,0.00021917,2]
[329816257,1718694649815,-1453.876118,0.00021917,2]
[329816258,1718694649824,-22887.84,0.00021917,2]
[329816259,1718694649834,-1453.876118,0.00021917,2]
[329816260,1718694649843,-500.0,0.00021917,2]
[329816261,1718694649852,-500.0,0.00021917,2]
[329816262,1718694649862,-787.5,0.00021917,2]
[329816263,1718694649871,-500.0,0.00021917,2]
[329816264,1718694649880,-1453.876118,0.00021917,2]
[329816265,1718694649889,-997.12,0.00021917,2]
[329816266,1718694649898,-1453.876118,0.00021917,2]
[329816267,1718694649907,-580.82,0.00021917,2]
[329816268,1718694649916,-834.01,0.00021917,2]
[329816269,1718694649930,-1524.82,0.00021917,2]
[329816270,1718694649939,-500.0,0.00021917,2]
[329816271,1718694649948,-507.02250064,0.00021917,2]
[329816272,1718694649959,-937.3,0.00021917,2]
[329816273,1718694649968,-500.0,0.00021917,2]
[329816274,1718694649977,-500.0,0.00021917,2]
[329816275,1718694649986,-500.0,0.00021917,2]
[329816276,1718694649995,-1331.72,0.00021917,2]
[329816277,1718694650004,-500.0,0.00021917,2]
[329816278,1718694650013,-846.93,0.00021917,2]
[329816279,1718694650023,-512.58277511,0.00021917,2]
[329816280,1718694650032,-500.0,0.00021917,2]
[329816281,1718694650041,-1567.76,0.00021917,2]
[329816282,1718694650050,-500.0,0.00021917,2]
[329816283,1718694650059,-500.0,0.00021917,2]
[329816284,1718694650068,-500.0,0.00021917,2]
[329816285,1718694650077,-1406.2,0.00021917,2]
[329816286,1718694650087,-2517.26422,0.00021917,2]
[329816287,1718694650096,-610.95,0.00021917,2]
[329816288,1718694650105,-500.0,0.00021917,2]
[329816289,1718694650114,-297.26671937,0.00021917,2]
[329816290,1718694650123,-500.0,0.00021917,2]
[329816291,1718694650132,-500.0,0.00021917,2]
[329816292,1718694650290,-500.0,0.00021917,2]
[329816293,1718694650300,-1356.03,0.00021917,2]
[329816294,1718694650309,-500.0,0.00021917,2]
[329816295,1718694650319,-500.0,0.00021917,2]
[329816296,1718694650332,-500.0,0.00021917,2]
[329816297,1718694650342,-925.54,0.00021917,2]
[329816298,1718694650351,-1128.87,0.00021917,2]
[329816299,1718694650361,-3760.51,0.00021917,2]
[329816300,1718694650370,-500.0,0.00021917,2]
[329816301,1718694650379,-500.0,0.00021917,2]
[329816302,1718694650388,-500.0,0.00021917,2]
[329816303,1718694650399,-22250.0,0.00021917,2]
[329816304,1718694650409,-692.64,0.00021917,2]
[329816305,1718694650418,-573.33,0.00021917,2]
[329816306,1718694650428,-616.81,0.00021917,2]
[329816307,1718694650437,-500.0,0.00021917,2]
[329816308,1718694650447,-500.0,0.00021917,2]
[329816309,1718694650458,-807.31,0.00021917,2]
[329816310,1718694650467,-1295.84,0.00021917,2]
[329816311,1718694650477,-500.0,0.00021917,2]
[329816312,1718694650487,-500.0,0.00021917,2]
[329816313,1718694650496,-500.0,0.00021917,2]
[329816314,1718694650505,-500.0,0.00021917,2]
[329816315,1718694650515,-151.0,0.00021917,2]
[329816316,1718694650525,-14438.68,0.00021917,2]
[329816317,1718694650535,-265.542882,0.00021917,2]
[329816318,1718694650544,-500.0,0.00021917,2]
[329816319,1718694650554,-500.0,0.00021917,2]
[329816320,1718694650563,-500.0,0.00021917,2]
[329816321,1718694650573,-2161.51,0.00021917,2]
[329816322,1718694650582,-500.0,0.00021917,2]
[329816323,1718694650591,-500.0,0.00021917,2]
[329816324,1718694650601,-500.0,0.00021917,2]
[329816325,1718694650610,-500.0,0.00021917,2]
[329816326,1718694650620,-770.86,0.00021917,2]
[329816327,1718694650629,-500.0,0.00021917,2]
[329816328,1718694650639,-500.0,0.00021917,2]
[329816329,1718694650649,-500.0,0.00021917,2]
[329816330,1718694650658,-500.0,0.00021917,2]
[329816331,1718694650668,-500.0,0.00021917,2]
[329816332,1718694650678,-513.88349866,0.00021917,2]
[329816333,1718694650687,-500.0,0.00021917,2]
[329816334,1718694650696,-500.0,0.00021917,2]
[329816335,1718694650708,-500.0,0.00021917,2]
[329816336,1718694650720,-511.87,0.00021917,2]
[329816337,1718694650730,-1084.35,0.00021917,2]
[329816338,1718694650739,-1269.91,0.00021917,2]
[329816339,1718694650748,-500.0,0.00021917,2]
[329816340,1718694650759,-13796.13,0.00021917,2]
[329816341,1718694650768,-500.0,0.00021917,2]
[329816342,1718694650778,-163.1772291,0.00021917,2]
[329816343,1718694651751,-336.8227709,0.00021917,2]
[329816344,1718694651767,-500.0,0.00021917,2]
[329816345,1718694651782,-500.0,0.00021917,2]
[329816346,1718694651797,-1705.07,0.00021917,2]
[329816347,1718694651812,-1127.14,0.00021917,2]
[329816348,1718694651827,-2889.06,0.00021917,2]
[329816349,1718694651842,-1047.62,0.00021917,2]
[329816350,1718694651857,-500.0,0.00021917,2]
[329816351,1718694651871,-500.0,0.00021917,2]
[329816352,1718694651885,-500.0,0.00021917,2]
[329816353,1718694651900,-500.0,0.00021917,2]
[329816354,1718694651915,-1395.55,0.00021917,2]
[329816355,1718694651930,-500.0,0.00021917,2]
[329816356,1718694651945,-32809.03,0.00021917,2]
[329816357,1718694651962,-500.0,0.00021917,2]
[329816358,1718694651976,-500.0,0.00021917,2]
[329816359,1718694651987,-2411.53,0.00021917,2]
[329816360,1718694651996,-500.0,0.00021917,2]
[329816361,1718694652006,-768.2,0.00021917,2]
[329816362,1718694652015,-500.0,0.00021917,2]
[329816363,1718694652024,-504.0,0.00021917,2]
[329816364,1718694652034,-671.03,0.00021917,2]
[329816365,1718694652043,-500.0,0.00021917,2]
[329816366,1718694652052,-500.0,0.00021917,2]
[329816367,1718694652061,-1211.22,0.00021917,2]
[329816368,1718694652071,-500.0,0.00021917,2]